fUSD/lending_fUSD_20250522
["ID","MTS","AMOUNT","RATE_DAILY","PERIOD"]
[361937236,1747900254863,-420.0,0.00032876,5]
[361937237,1747900254873,-429.69,0.00032876,5]
[361937238,1747900254885,-480.3,0.00032876,5]
[361937239,1747900254894,-420.0,0.00032876,5]
[361937240,1747900254905,-882.19,0.00032876,5]
[361937241,1747900254915,-420.0,0.00032876,5]
[361937242,1747900254924,-420.99,0.00032876,5]
[361937243,1747900254934,-536.34810572,0.00032876,5]
[361937244,1747900254945,-420.0,0.00032876,5]
[361937245,1747900254954,-496.63,0.00032876,5]
[361937246,1747900254963,-420.0,0.00032876,5]
[361937247,1747900254973,-420.0,0.00032876,5]
[361937248,1747900254983,-420.0,0.00032876,5]
[361937249,1747900254992,-360.09344515,0.00032876,5]
[361937250,1747900255002,-420.0,0.00032876,5]
[361937251,1747900255011,-420.0,0.00032876,5]
[361937252,1747900255020,-1417.52,0.00032876,5]
[361937253,1747900255029,-421.36620862,0.00032876,5]
[361937254,1747900255038,-572.57,0.00032876,5]
[361937255,1747900255047,-640.0,0.00032876,5]
[361937256,1747900255058,-458.37,0.00032876,5]
[361937257,1747900255067,-815.54,0.00032876,5]
[361937258,1747900255077,-420.0,0.00032876,5]
[361937259,1747900255087,-1326.58,0.00032876,5]
[361937260,1747900255096,-420.0,0.00032876,5]
[361937261,1747900255106,-420.0,0.00032876,5]
[361937262,1747900255115,-1163.57,0.00032876,5]
[361937263,1747900255124,-717.17,0.00032876,5]
[361937264,1747900255134,-594.05,0.00032876,5]
[361937265,1747900255144,-2389.01,0.00032876,5]
[361937266,1747900255154,-511.68,0.00032876,5]
[361937267,1747900255163,-517.68,0.00032876,5]
[361937268,1747900255172,-420.0,0.00032876,5]
[361937269,1747900255182,-420.0,0.00032876,5]
[361937270,1747900255191,-761.92,0.00032876,5]
[361937271,1747900255201,-420.0,0.00032876,5]
[361937272,1747900255212,-1108.79,0.00032876,5]
[361937273,1747900255226,-420.0,0.00032876,5]
[361937274,1747900255236,-607.41,0.00032876,5]
[361937275,1747900255246,-819.32,0.00032876,5]
[361937276,1747900255256,-768.57,0.00032876,5]
[361937277,1747900255267,-420.0,0.00032876,5]
[361937278,1747900255277,-542.31648411,0.00032876,5]
[361937279,1747900255286,-420.0,0.00032876,5]
[361937280,1747900255296,-420.0,0.00032876,5]
[361937281,1747900255306,-420.0,0.00032876,5]
[361937282,1747900255315,-420.0,0.00032876,5]
[361937283,1747900255327,-420.88064967,0.00032876,5]
[361937284,1747900255337,-1451.68,0.00032876,5]
[361937285,1747900255347,-422.11675781,0.00032876,5]
[361937286,1747900255357,-420.0,0.00032876,5]
[361937287,1747900255367,-420.0,0.00032876,5]
[361937288,1747900255376,-423.69099462,0.00032876,5]
[361937289,1747900255386,-420.0,0.00032876,5]
[361937290,1747900255396,-420.0,0.00032876,5]
[361937291,1747900255405,-420.0,0.00032876,5]
[361937292,1747900255415,-422.21600692,0.00032876,5]
[361937293,1747900255425,-420.0,0.00032876,5]
[361937294,1747900255435,-464.89,0.00032876,5]
[361937295,1747900255445,-420.0,0.00032876,5]
[361937296,1747900255454,-420.8110934,0.00032876,5]
[361937297,1747900255463,-479.89,0.00032876,5]
[361937298,1747900255473,-420.0,0.00032876,5]
[361937299,1747900255744,-755.58,0.00032876,5]
[361937300,1747900255755,-420.0,0.00032876,5]
[361937301,1747900255765,-961.57,0.00032876,5]
[361937302,1747900255775,-920.83,0.00032876,5]
[361937303,1747900255786,-1496.02,0.00032876,5]
[361937304,1747900255796,-421.52121518,0.00032876,5]
[361937305,1747900255806,-701.28,0.00032876,5]
[361937306,1747900255816,-424.80406451,0.00032876,5]
[361937307,1747900255826,-563.08760248,0.00032876,5]
[361937308,1747900255836,-420.0,0.00032876,5]
[361937309,1747900255846,-925.02,0.00032876,5]
[361937310,1747900255856,-420.0,0.00032876,5]
[361937311,1747900255866,-1574.14,0.00032876,5]
[361937312,1747900255876,-1167.27,0.00032876,5]
[361937313,1747900255886,-947.4,0.00032876,5]
[361937314,1747900255895,-547.25,0.00032876,5]
[361937315,1747900255905,-412.97921174,0.00032876,5]
[361937316,1747900255915,-420.0,0.00032876,5]
[361937317,1747900255925,-420.0,0.00032876,5]
[361937318,1747900255936,-1065.05,0.00032876,5]
[361937319,1747900255946,-422.06,0.00032876,5]
[361937320,1747900255955,-826.7,0.00032876,5]
[361937321,1747900255965,-421.44805354,0.00032876,5]
[361937322,1747900255975,-420.0,0.00032876,5]
[361937323,1747900255985,-1086.06,0.00032876,5]
[361937324,1747900255995,-420.0,0.00032876,5]
[361937325,1747900256005,-521.16,0.00032876,5]
[361937326,1747900256015,-611.87,0.00032876,5]
[361937327,1747900256025,-500.0,0.00032876,5]
[361937328,1747900256035,-420.0,0.00032876,5]
[361937329,1747900256044,-500.0,0.00032876,5]
[361937330,1747900256055,-500.0,0.00032876,5]
[361937331,1747900256065,-802.34,0.00032876,5]
[361937332,1747900256075,-500.0,0.00032876,5]
[361937333,1747900256086,-471.51689646,0.00032876,5]
[361937334,1747900256097,-472.53302666,0.00032876,5]
[361937335,1747900256106,-500.0,0.00032876,5]
[361937336,1747900256115,-500.0,0.00032876,5]
[361937337,1747900256125,-420.0,0.00032876,5]
[361937338,1747900256135,-500.0,0.00032876,5]
[361937339,1747900256144,-500.0,0.00032876,5]
[361937340,1747900256154,-500.0,0.00032876,5]
[361937341,1747900256164,-420.0,0.00032876,5]
[361937342,1747900256173,-500.0,0.00032876,5]
[361937343,1747900256183,-500.0,0.00032876,5]
[361937344,1747900256194,-500.0,0.00032876,5]
[361937345,1747900256203,-420.0,0.00032876,5]
[361937346,1747900256213,-1142.53,0.00032876,5]
[361937347,1747900256223,-500.0,0.00032876,5]
[361937348,1747900256232,-500.0,0.00032876,5]
[361937349,1747900256242,-500.0,0.00032876,5]
[361937350,1747900256252,-420.0,0.00032876,5]
[361937351,1747900256261,-500.0,0.00032876,5]
[361937352,1747900256270,-500.0,0.00032876,5]
[361937353,1747900256280,-448.42,0.00032876,5]
[361937354,1747900256290,-500.0,0.00032876,5]
[361937355,1747900256300,-248.09083663,0.00032876,5]
[361937356,1747900256310,-837.34,0.00032876,5]
[361937357,1747900256320,-1545.71,0.00032876,5]
[361937358,1747900256329,-420.0,0.00032876,5]
[361937359,1747900256339,-420.0,0.00032876,5]
[361937360,1747900256349,-420.0,0.00032876,5]
[361937361,1747900256359,-739.39,0.00032876,5]
[361937362,1747900256368,-992.41,0.00032876,5]
[361937363,1747900256378,-501.30385803,0.00032876,5]
[361937364,1747900256387,-420.0,0.00032876,5]
[361937365,1747900256397,-420.0,0.00032876,5]
[361937366,1747900256407,-778.21,0.00032876,5]
[361937367,1747900256416,-1109.11,0.00032876,5]
[361937368,1747900256426,-1801.26,0.00032876,5]
[361937369,1747900256435,-420.0,0.00032876,5]
[361937370,1747900256445,-420.0,0.00032876,5]
[361937371,1747900256454,-420.0,0.00032876,5]
[361937372,1747900256463,-420.0,0.00032876,5]
[361937373,1747900256472,-481.87,0.00032876,5]
[361937374,1747900256481,-1139.91,0.00032876,5]
[361937375,1747900256491,-581.02,0.00032876,5]
[361937376,1747900256500,-389.42888588,0.00032876,5]
[361937377,1747900256509,-1698.86,0.00032876,5]
[361937378,1747900256519,-611.23,0.00032876,5]
[361937379,1747900256528,-424.01963924,0.00032876,5]
[361937380,1747900256538,-420.0,0.00032876,5]
[361937381,1747900256551,-420.0,0.00032876,5]
[361937382,1747900256560,-1310.87,0.00032876,5]
[361937383,1747900256569,-1257.82,0.00032876,5]
[361937384,1747900256578,-420.0,0.00032876,5]
[361937385,1747900256588,-420.0,0.00032876,5]
[361937386,1747900256597,-420.0,0.00032876,5]
[361937387,1747900256606,-397.49286494,0.00032876,5]
[361937388,1747900256616,-1619.36,0.00032876,5]
[361937389,1747900256625,-420.0,0.00032876,5]
[361937390,1747900256635,-423.75828548,0.00032876,5]
[361937391,1747900256644,-2083.7,0.00032876,5]
[361937392,1747900256653,-701.05,0.00032876,5]
[361937393,1747900256663,-420.0,0.00032876,5]
[361937394,1747900256673,-1099.58,0.00032876,5]
[361937395,1747900256682,-940.62,0.00032876,5]
[361937396,1747900256692,-420.0,0.00032876,5]
[361937397,1747900256702,-424.21,0.00032876,5]
[361937398,1747900256712,-420.0,0.00032876,5]
[361937399,1747900256721,-420.0,0.00032876,5]
[361937400,1747900256731,-435.83,0.00032876,5]
[361937401,1747900256741,-565.18,0.00032876,5]
[361937402,1747900256751,-1466.4,0.00032876,5]
[361937403,1747900256760,-420.0,0.00032876,5]
[361937404,1747900256769,-814.5,0.00032876,5]
[361937405,1747900256778,-1321.77,0.00032876,5]
[361937406,1747900256788,-1841.68,0.00032876,5]
[361937407,1747900256797,-420.0,0.00032876,5]
[361937408,1747900256806,-685.9,0.00032876,5]
[361937409,1747900256816,-420.0,0.00032876,5]
[361937410,1747900256826,-844.47,0.00032876,5]
[361937411,1747900256835,-480.4,0.00032876,5]
[361937412,1747900256845,-854.94,0.00032876,5]
[361937413,1747900256855,-420.0,0.00032876,5]
[361937414,1747900256864,-420.0,0.00032876,5]
[361937415,1747900256874,-500.0,0.00032876,5]
[361937416,1747900256883,-420.0,0.00032876,5]
[361937417,1747900256893,-422.51914323,0.00032876,5]
[361937418,1747900256903,-420.0,0.00032876,5]
[361937419,1747900256912,-1068.75,0.00032876,5]
[361937420,1747900256921,-605.6,0.00032876,5]
[361937421,1747900256931,-420.0,0.00032876,5]
[361937422,1747900256941,-420.0,0.00032876,5]
[361937423,1747900256950,-420.0,0.00032876,5]
[361937424,1747900256960,-431.58,0.00032876,5]
[361937425,1747900256971,-1853.09,0.00032876,5]
[361937426,1747900256981,-859.16,0.00032876,5]
[361937427,1747900256990,-420.0,0.00032876,5]
[361937428,1747900257000,-420.0,0.00032876,5]
[361937429,1747900257009,-797.46,0.00032876,5]
[361937430,1747900257019,-500.0,0.00032876,5]
[361937431,1747900257029,-420.0,0.00032876,5]
[361937432,1747900257040,-420.0,0.00032876,5]
[361937433,1747900257051,-420.0,0.00032876,5]
[361937434,1747900257060,-5000.0,0.00032876,5]
[361937435,1747900257069,-1195.63,0.00032876,5]
[361937436,1747900257079,-5027.41,0.00032876,5]
[361937437,1747900257089,-840.42,0.00032876,5]
[361937438,1747900257098,-420.0,0.00032876,5]
[361937439,1747900257108,-473.59,0.00032876,5]
[361937440,1747900257118,-647.86,0.00032876,5]
[361937441,1747900257128,-778.95,0.00032876,5]
[361937442,1747900257138,-1240.32,0.00032876,5]
[361937443,1747900257148,-420.0,0.00032876,5]
[361937444,1747900257158,-656.91,0.00032876,5]
[361937445,1747900257168,-420.0,0.00032876,5]
[361937446,1747900257177,-420.0,0.00032876,5]
[361937447,1747900257186,-420.0,0.00032876,5]
[361937448,1747900257196,-420.0,0.00032876,5]
[361937449,1747900257206,-420.0,0.00032876,5]
[361937450,1747900257215,-420.0,0.00032876,5]
[361937451,1747900257225,-1432.51,0.00032876,5]
[361937452,1747900257235,-422.10845048,0.00032876,5]
[361937453,1747900257245,-891.78,0.00032876,5]
[361937454,1747900257255,-441.17,0.00032876,5]
[361937455,1747900257266,-1386.2,0.00032876,5]
[361937456,1747900257275,-420.0,0.00032876,5]
[361937457,1747900257285,-499.21512011,0.00032876,5]
[361937458,1747900257294,-473.29612678,0.00032876,5]
[361937459,1747900257304,-1508.09,0.00032876,5]
[361937460,1747900257313,-420.0,0.00032876,5]
[361937461,1747900257323,-420.0,0.00032876,5]
[361937462,1747900257333,-1613.27,0.00032876,5]
[361937463,1747900257343,-420.0,0.00032876,5]
[361937464,1747900257353,-420.0,0.00032876,5]
[361937465,1747900257362,-420.0,0.00032876,5]
[361937466,1747900257372,-1064.03,0.00032876,5]
[361937467,1747900257381,-1746.49,0.00032876,5]
[361937468,1747900257391,-422.16520449,0.00032876,5]
[361937469,1747900257401,-420.0,0.00032876,5]
[361937470,1747900257411,-420.0,0.00032876,5]
[361937471,1747900257421,-1401.29,0.00032876,5]
[361937472,1747900257430,-420.0,0.00032876,5]
[361937473,1747900257441,-1328.89,0.00032876,5]
[361937474,1747900257451,-543.63,0.00032876,5]
[361937475,1747900257461,-420.0,0.00032876,5]
[361937476,1747900257471,-1119.85,0.00032876,5]
[361937477,1747900257480,-420.0,0.00032876,5]
[361937478,1747900257491,-420.0,0.00032876,5]
[361937479,1747900257500,-3509.04,0.00032876,5]
[361937480,1747900257510,-569.42,0.00032876,5]
[361937481,1747900257519,-420.0,0.00032876,5]
[361937482,1747900257531,-531.38,0.00032876,5]
[361937483,1747900257543,-596.62,0.00032876,5]
[361937484,1747900257554,-1670.24,0.00032876,5]
[361937485,1747900257564,-420.0,0.00032876,5]
[361937486,1747900257574,-766.9,0.00032876,5]
[361937487,1747900257584,-420.0,0.00032876,5]
[361937488,1747900257593,-1187.08,0.00032876,5]
[361937489,1747900257603,-420.0,0.00032876,5]
[361937490,1747900257614,-420.0,0.00032876,5]
[361937491,1747900257627,-549.87896469,0.00032876,5]
[361937492,1747900257637,-420.0,0.00032876,5]
[361937493,1747900257648,-421.89326847,0.00032876,5]
[361937494,1747900257661,-420.0,0.00032876,5]
[361937495,1747900257671,-1508.98,0.00032876,5]
[361937496,1747900257681,-420.0,0.00032876,5]
[361937497,1747900257691,-420.0,0.00032876,5]
[361937498,1747900257701,-420.0,0.00032876,5]
[361937499,1747900257712,-420.0,0.00032876,5]
[361937500,1747900257723,-420.0,0.00032876,5]
[361937501,1747900257735,-1040.27,0.00032876,5]
[361937502,1747900257745,-420.0,0.00032876,5]
[361937503,1747900257754,-420.0,0.00032876,5]
[361937504,1747900257765,-1327.65,0.00032876,5]
[361937505,1747900257775,-420.0,0.00032876,5]
[361937506,1747900257786,-519.8,0.00032876,5]
[361937507,1747900257797,-420.0,0.00032876,5]
[361937508,1747900257809,-420.0,0.00032876,5]
[361937509,1747900257819,-2156.73,0.00032876,5]
[361937510,1747900257830,-420.0,0.00032876,5]
[361937511,1747900257839,-420.0,0.00032876,5]
[361937512,1747900257848,-421.03613884,0.00032876,5]
[361937513,1747900257858,-420.0,0.00032876,5]
[361937514,1747900257867,-420.0,0.00032876,5]
[361937515,1747900257876,-557.82,0.00032876,5]
[361937516,1747900257886,-538.81,0.00032876,5]
[361937517,1747900257897,-420.0,0.00032876,5]
[361937518,1747900257912,-420.0,0.00032876,5]
[361937519,1747900257924,-420.0,0.00032876,5]
[361937520,1747900257934,-720.7,0.00032876,5]
[361937521,1747900257946,-1771.73,0.00032876,5]
[361937522,1747900257956,-420.0,0.00032876,5]
[361937523,1747900257967,-420.0,0.00032876,5]
[361937524,1747900257978,-3245.7,0.00032876,5]
[361937525,1747900257992,-1790.29,0.00032876,5]
[361937526,1747900258002,-420.0,0.00032876,5]
[361937527,1747900258016,-1523.39,0.00032876,5]
[361937528,1747900258026,-449.85,0.00032876,5]
[361937529,1747900258046,-420.0,0.00032876,5]
[361937530,1747900258056,-420.0,0.00032876,5]
[361937531,1747900258067,-517.63,0.00032876,5]
[361937532,1747900258078,-420.0,0.00032876,5]
[361937533,1747900258088,-420.0,0.00032876,5]
[361937534,1747900258098,-420.0,0.00032876,5]
[361937535,1747900258108,-420.0,0.00032876,5]
[361937536,1747900258121,-420.0,0.00032876,5]
[361937537,1747900258131,-1766.75,0.00032876,5]
[361937538,1747900258140,-512.10552374,0.00032876,50]
[361937539,1747900258150,-1014.77,0.00032876,5]
[361937540,1747900258160,-420.0,0.00032876,5]
[361937541,1747900258170,-420.0,0.00032876,5]
[361937542,1747900258181,-420.0,0.00032876,5]
[361937543,1747900258191,-964.88,0.00032876,5]
[361937544,1747900258290,-1019.51,0.00032876,5]
[361937545,1747900258300,-420.0,0.00032876,5]
[361937546,1747900258310,-751.26,0.00032876,5]
[361937547,1747900258319,-423.58535527,0.00032876,5]
[361937548,1747900258328,-420.0,0.00032876,5]
[361937549,1747900258338,-420.0,0.00032876,5]
[361937550,1747900258348,-421.38812479,0.00032876,5]
[361937551,1747900258357,-420.0,0.00032876,5]
[361937552,1747900258366,-1024.98,0.00032876,5]
[361937553,1747900258376,-420.0,0.00032876,5]
[361937554,1747900258385,-420.0,0.00032876,5]
[361937555,1747900258396,-2164.91,0.00032876,5]
[361937556,1747900258405,-420.0,0.00032876,5]
[361937557,1747900258415,-420.0,0.00032876,5]
[361937558,1747900258424,-420.0,0.00032876,5]
[361937559,1747900258433,-420.0,0.00032876,5]
[361937560,1747900258443,-554.44,0.00032876,5]
[361937561,1747900258452,-1053.6,0.00032876,5]
[361937562,1747900258462,-473.17,0.00032876,5]
[361937563,1747900258471,-420.0,0.00032876,5]
[361937564,1747900258480,-420.0,0.00032876,5]
[361937565,1747900258489,-420.0,0.00032876,5]
[361937566,1747900258498,-420.0,0.00032876,5]
[361937567,1747900258508,-420.0,0.00032876,5]
[361937568,1747900258517,-420.0,0.00032876,5]
[361937569,1747900258527,-673.33,0.00032876,5]
[361937570,1747900258537,-420.0,0.00032876,5]
[361937571,1747900258553,-420.0,0.00032876,5]
[361937572,1747900258562,-470.15,0.00032876,5]
[361937573,1747900258572,-880.49,0.00032876,5]
[361937574,1747900258582,-420.0,0.00032876,5]
[361937575,1747900258593,-776.17,0.00032876,5]
[361937576,1747900258603,-420.0,0.00032876,5]
[361937577,1747900258614,-420.0,0.00032876,5]
[361937578,1747900258624,-1228.42,0.00032876,5]
[361937579,1747900258633,-420.0,0.00032876,5]
[361937580,1747900258642,-8618.75,0.00032876,5]
[361937581,1747900258651,-420.0,0.00032876,5]
[361937582,1747900258661,-420.0,0.00032876,5]
[361937583,1747900258670,-1558.59,0.00032876,5]
[361937584,1747900258682,-420.0,0.00032876,5]
[361937585,1747900258692,-420.0,0.00032876,5]
[361937586,1747900258701,-658.6,0.00032876,5]
[361937587,1747900258711,-421.13490469,0.00032876,5]
[361937588,1747900258721,-420.0,0.00032876,5]
[361937589,1747900258731,-420.0,0.00032876,5]
[361937590,1747900258740,-421.61681162,0.00032876,5]
[361937591,1747900258750,-1274.92,0.00032876,5]
[361937592,1747900258759,-587.4,0.00032876,5]
[361937593,1747900258768,-281.01475177,0.00032876,5]
[361937594,1747900258778,-420.0,0.00032876,5]
[361937595,1747900258788,-420.0,0.00032876,5]
[361937596,1747900258798,-999.15,0.00032876,5]
[361937597,1747900258807,-1197.91,0.00032876,5]
[361937598,1747900258816,-1050.0,0.00032876,5]
[361937599,1747900258826,-4017.09,0.00032876,5]
[361937600,1747900258835,-1449.25,0.00032876,5]
[361937601,1747900258844,-421.44094514,0.00032876,5]
[361937602,1747900258854,-420.0,0.00032876,5]
[361937603,1747900258863,-2000.0,0.00032876,5]
[361937604,1747900258872,-420.0,0.00032876,5]
[361937605,1747900258882,-1496.61,0.00032876,5]
[361937606,1747900258891,-420.0,0.00032876,5]
[361937607,1747900258901,-598.59,0.00032876,5]
[361937608,1747900258910,-531.24,0.00032876,5]
[361937609,1747900258919,-420.0,0.00032876,5]
[361937610,1747900258929,-420.0,0.00032876,5]
[361937611,1747900258938,-1051.29,0.00032876,5]
[361937612,1747900258948,-420.0,0.00032876,5]
[361937613,1747900258957,-486.92,0.00032876,5]
[361937614,1747900258966,-613.9,0.00032876,5]
[361937615,1747900258976,-483.32,0.00032876,5]
[361937616,1747900258985,-420.0,0.00032876,5]
[361937617,1747900258995,-648.12,0.00032876,5]
[361937618,1747900259004,-998.18,0.00032876,5]
[361937619,1747900259014,-444.63,0.00032876,5]
[361937620,1747900259023,-436.1,0.00032876,5]
[361937621,1747900259032,-1977.5,0.00032876,5]
[361937622,1747900259041,-500.0,0.00032876,2]
[361937623,1747900259050,-420.0,0.00032876,5]
[361937624,1747900259059,-420.0,0.00032876,5]
[361937625,1747900259069,-453.29,0.00032876,5]
[361937626,1747900259078,-485.05,0.00032876,5]
[361937627,1747900259087,-1317.95,0.00032876,5]
[361937628,1747900259096,-420.0,0.00032876,5]
[361937629,1747900259106,-1207.0,0.00032876,5]
[361937630,1747900259115,-420.0,0.00032876,5]
[361937631,1747900259124,-420.0,0.00032876,5]
[361937632,1747900259134,-1681.8,0.00032876,5]
[361937633,1747900259143,-444.57,0.00032876,5]
[361937634,1747900259153,-898.31,0.00032876,5]
[361937635,1747900259162,-420.0,0.00032876,5]
[361937636,1747900259171,-421.18032013,0.00032876,5]
[361937637,1747900259180,-420.0,0.00032876,5]
[361937638,1747900259189,-421.6793181,0.00032876,5]
[361937639,1747900259198,-420.0,0.00032876,5]
[361937640,1747900259207,-420.0,0.00032876,5]
[361937641,1747900259216,-3573.1,0.00032876,5]
[361937642,1747900259225,-3789.22,0.00032876,5]
[361937643,1747900259235,-420.0,0.00032876,5]
[361937644,1747900259245,-420.0,0.00032876,5]
[361937645,1747900259253,-735.29,0.00032876,5]
[361937646,1747900259264,-420.0,0.00032876,5]
[361937647,1747900259273,-420.0,0.00032876,5]
[361937648,1747900259282,-420.0,0.00032876,5]
[361937649,1747900259291,-420.0,0.00032876,5]
[361937650,1747900259301,-420.0,0.00032876,5]
[361937651,1747900259311,-420.0,0.00032876,5]
[361937652,1747900259320,-420.0,0.00032876,5]
[361937653,1747900259329,-434.58,0.00032876,5]
[361937654,1747900259339,-522.16025283,0.00032876,5]
[361937655,1747900259348,-1590.43,0.00032876,5]
[361937656,1747900259357,-1207.26,0.00032876,5]
[361937657,1747900259367,-2526.54,0.00032876,5]
[361937658,1747900259376,-728.24,0.00032876,5]
[361937659,1747900259387,-422.58548218,0.00032876,5]
[361937660,1747900259396,-420.0,0.00032876,5]
[361937661,1747900259405,-505.11,0.00032876,5]
[361937662,1747900259416,-420.0,0.00032876,5]
[361937663,1747900259425,-12286.98,0.00032876,5]
[361937664,1747900259435,-504.27,0.00032876,5]
[361937665,1747900259445,-556.88,0.00032876,5]
[361937666,1747900259454,-988.07,0.00032876,5]
[361937667,1747900259464,-423.59913103,0.00032876,5]
[361937668,1747900259473,-420.0,0.00032876,5]
[361937669,1747900259482,-225.07930047,0.00032876,5]
[361937670,1747900259491,-1131.91,0.00032876,5]
[361937671,1747900259500,-637.34,0.00032876,5]
[361937672,1747900259509,-420.0,0.00032876,5]
[361937673,1747900259519,-842.33,0.00032876,5]
[361937674,1747900259530,-1113.1,0.00032876,5]
[361937675,1747900259539,-1178.73,0.00032876,5]
[361937676,1747900259552,-419.42504503,0.00032876,5]
[361937677,1747900259561,-1238.93,0.00032876,5]
[361937678,1747900259571,-600.83,0.00032876,5]
[361937679,1747900259582,-1200.0,0.00032876,5]
[361937680,1747900259593,-420.0,0.00032876,5]
[361937681,1747900259602,-1155.89,0.00032876,5]
[361937682,1747900259611,-421.86539366,0.00032876,5]
[361937683,1747900259620,-938.2,0.00032876,5]
[361937684,1747900259629,-400.50581814,0.00032876,5]
[361937685,1747900259640,-955.67,0.00032876,5]
[361937686,1747900259649,-428.61,0.00032876,5]
[361937687,1747900259658,-3834.31,0.00032876,5]
[361937688,1747900259667,-621.08,0.00032876,5]
[361937689,1747900259676,-1636.92,0.00032876,5]
[361937690,1747900259685,-420.0,0.00032876,5]
[361937691,1747900259694,-784.26,0.00032876,5]
[361937692,1747900259703,-669.22,0.00032876,5]
[361937693,1747900259713,-420.0,0.00032876,5]
[361937694,1747900259722,-420.0,0.00032876,5]
[361937695,1747900259732,-420.0,0.00032876,5]
[361937696,1747900259741,-445.74,0.00032876,5]
[361937697,1747900259751,-420.0,0.00032876,5]
[361937698,1747900259760,-420.0,0.00032876,5]
[361937699,1747900259769,-470.16,0.00032876,5]
[361937700,1747900259778,-420.0,0.00032876,5]
[361937701,1747900259787,-1010.8,0.00032876,5]
[361937702,1747900259796,-420.0,0.00032876,5]
[361937703,1747900259805,-1511.03,0.00032876,5]
[361937704,1747900259814,-420.0,0.00032876,5]
[361937705,1747900259823,-420.0,0.00032876,5]
[361937706,1747900259832,-3814.38,0.00032876,5]
[361937707,1747900259841,-482.35,0.00032876,5]
[361937708,1747900259850,-420.0,0.00032876,5]
[361937709,1747900259860,-804.99,0.00032876,5]
[361937710,1747900259869,-1193.71,0.00032876,5]
[361937711,1747900259879,-420.0,0.00032876,5]
[361937712,1747900259888,-420.0,0.00032876,5]
[361937713,1747900259897,-455.52,0.00032876,5]
[361937714,1747900259906,-420.0,0.00032876,5]
[361937715,1747900259916,-420.0,0.00032876,5]
[361937716,1747900259927,-1267.77,0.00032876,5]
[361937717,1747900259936,-10953.52,0.00032876,5]
[361937718,1747900259945,-420.0,0.00032876,5]
[361937719,1747900259954,-420.0,0.00032876,5]
[361937720,1747900259963,-420.0,0.00032876,5]
[361937721,1747900259972,-420.0,0.00032876,5]
[361937722,1747900259981,-420.0,0.00032876,5]
[361937723,1747900259990,-885.68,0.00032876,5]
[361937724,1747900260000,-1051.98,0.00032876,5]
[361937725,1747900260010,-420.0,0.00032876,5]
[361937726,1747900260019,-6330.87,0.00032876,5]
[361937727,1747900260030,-1097.27,0.00032876,5]
[361937728,1747900260039,-420.0,0.00032876,5]
[361937729,1747900260048,-420.25,0.00032876,5]
[361937730,1747900260058,-420.0,0.00032876,5]
[361937731,1747900260068,-420.0,0.00032876,5]
[361937732,1747900260078,-1235.75,0.00032876,5]
[361937733,1747900260087,-420.0,0.00032876,5]
[361937734,1747900260097,-716.92,0.00032876,5]
[361937735,1747900260105,-1677.53,0.00032876,5]